[Event "*** Titled Tuesday 3|2 Blitz"]
[Site "Chess.com"]
[Date "2016.07.05"]
[Round "2"]
[White "yopino"]
[Black "Journey_to_GrandMaster_YT"]
[Result "0-1"]
[WhiteElo "2371"]
[BlackElo "2428"]
[TimeControl "180+2"]
[EndTime "11:19:50 PDT"]
[Termination "Journey_to_GrandMaster_YT won by resignation"]

1. e4 {[%clk 0:03:01.9]} 1... d6 {[%clk 0:03:00.8]} 2. d4 {[%clk 0:02:59.5]}
2... Nf6 {[%clk 0:03:02]} 3. Nc3 {[%clk 0:02:57.8]} 3... e5 {[%clk 0:03:03.2]}
4. Nf3 {[%clk 0:02:55.7]} 4... Nbd7 {[%clk 0:03:04.4]} 5. g4 {[%clk 0:02:39.8]}
5... Nxg4 {[%clk 0:03:04.4]} 6. Rg1 {[%clk 0:02:27.5]} 6... Ngf6 {[%clk
0:03:05.1]} 7. Bc4 {[%clk 0:02:25.5]} 7... h6 {[%clk 0:03:06]} 8. Be3 {[%clk
0:02:13.2]} 8... c6 {[%clk 0:03:06.8]} 9. Qd3 {[%clk 0:01:56.7]} 9... b5 {[%clk
0:03:07.4]} 10. Bb3 {[%clk 0:01:53]} 10... Qa5 {[%clk 0:03:03.4]} 11. dxe5
{[%clk 0:01:53.6]} 11... dxe5 {[%clk 0:03:04.2]} 12. O-O-O {[%clk 0:01:50.3]}
12... Ba6 {[%clk 0:03:03.8]} 13. Ne2 {[%clk 0:01:46.4]} 13... c5 {[%clk
0:02:51.5]} 14. c4 {[%clk 0:01:46.5]} 14... b4 {[%clk 0:02:38.3]} 15. Qc2 {[%clk
0:01:47.4]} 15... O-O-O {[%clk 0:02:36.4]} 16. Ne1 {[%clk 0:01:43.1]} 16... Qc7
{[%clk 0:02:30.6]} 17. Kb1 {[%clk 0:01:35.6]} 17... Bb7 {[%clk 0:02:30.7]} 18.
f3 {[%clk 0:01:31.5]} 18... g6 {[%clk 0:02:20]} 19. Ng2 {[%clk 0:01:28.3]} 19...
Be7 {[%clk 0:02:10.5]} 20. Bf2 {[%clk 0:01:24.4]} 20... Nf8 {[%clk 0:02:04.2]}
21. Ne3 {[%clk 0:01:17.6]} 21... Ne6 {[%clk 0:02:03.8]} 22. Nd5 {[%clk
0:01:13.2]} 22... Nxd5 {[%clk 0:02:04.6]} 23. cxd5 {[%clk 0:01:11.7]} 23... Nd4
{[%clk 0:02:05.9]} 24. Nxd4 {[%clk 0:01:03.9]} 24... cxd4 {[%clk 0:02:06.9]} 25.
Qd3 {[%clk 0:01:00]} 25... Kb8 {[%clk 0:02:07.3]} 26. f4 {[%clk 0:00:56.3]}
26... exf4 {[%clk 0:01:57.5]} 27. Qxd4 {[%clk 0:00:53.3]} 27... Bc8 {[%clk
0:01:44.4]} 28. Rc1 {[%clk 0:00:49.3]} 28... Qb7 {[%clk 0:01:43.9]} 29. Rc6
{[%clk 0:00:48.4]} 29... Bd7 {[%clk 0:01:41.3]} 30. Qe5+ {[%clk 0:00:43.3]}
30... Ka8 {[%clk 0:01:37.6]} 31. Qxe7 {[%clk 0:00:44.2]} 31... Bxc6 {[%clk
0:01:37.6]} 32. Qf6 {[%clk 0:00:25.2]} 32... Bb5 {[%clk 0:01:34.5]} 33. Qxf4
{[%clk 0:00:26.3]} 33... Rhe8 {[%clk 0:01:30.3]} 34. Ka1 {[%clk 0:00:25.9]}
34... Qb8 {[%clk 0:01:22.5]} 35. d6 {[%clk 0:00:20.7]} 35... Qxd6 {[%clk
0:01:20.1]} 36. Qxf7 {[%clk 0:00:18.2]} 36... Re7 {[%clk 0:01:12.9]} 37. Qf3
{[%clk 0:00:16.5]} 37... Bc6 {[%clk 0:01:11.6]} 38. Bg3 {[%clk 0:00:15.9]} 38...
Qd3 {[%clk 0:01:09.1]} 39. Qf6 {[%clk 0:00:15.7]} 39... Qd7 {[%clk 0:00:57.7]}
40. Rc1 {[%clk 0:00:15.1]} 40... Bb7 {[%clk 0:00:56.2]} 41. Rc7 {[%clk
0:00:14.3]} 41... Qd1+ {[%clk 0:00:52.6]} 0-1

[Event "*** Titled Tuesday 3|2 Blitz"]
[Site "Chess.com"]
[Date "2016.07.05"]
[Round "2"]
[White "josiwales"]
[Black "eltenedor"]
[Result "1-0"]
[WhiteElo "2112"]
[BlackElo "2016"]
[TimeControl "180+2"]
[EndTime "11:20:25 PDT"]
[Termination "josiwales won on time"]

1. e4 {[%clk 0:03:01.9]} 1... d5 {[%clk 0:02:59.9]} 2. exd5 {[%clk 0:03:02.6]}
2... Nf6 {[%clk 0:03:01.2]} 3. Nc3 {[%clk 0:03:04.5]} 3... Nxd5 {[%clk
0:03:00.2]} 4. Nf3 {[%clk 0:03:04.4]} 4... Bf5 {[%clk 0:02:40.4]} 5. Bc4 {[%clk
0:03:02.7]} 5... Nb6 {[%clk 0:02:34.9]} 6. Bb3 {[%clk 0:03:02.2]} 6... e6 {[%clk
0:02:34.8]} 7. d4 {[%clk 0:03:01.6]} 7... Be7 {[%clk 0:02:26.3]} 8. Be3 {[%clk
0:03:01.6]} 8... O-O {[%clk 0:02:26.6]} 9. Qd2 {[%clk 0:03:01.1]} 9... Nc6
{[%clk 0:02:24.6]} 10. O-O-O {[%clk 0:02:57.8]} 10... Bb4 {[%clk 0:02:24.2]} 11.
h3 {[%clk 0:02:51.9]} 11... Nd5 {[%clk 0:02:10.9]} 12. Bxd5 {[%clk 0:02:47.7]}
12... exd5 {[%clk 0:02:11.3]} 13. a3 {[%clk 0:02:45.8]} 13... Ba5 {[%clk
0:02:04.6]} 14. b4 {[%clk 0:02:45.9]} 14... Bb6 {[%clk 0:01:59.5]} 15. g4 {[%clk
0:02:34]} 15... Be4 {[%clk 0:01:34.7]} 16. Nxe4 {[%clk 0:02:34.3]} 16... dxe4
{[%clk 0:01:35]} 17. Ne5 {[%clk 0:02:35.8]} 17... Nxe5 {[%clk 0:01:12.2]} 18.
dxe5 {[%clk 0:02:35]} 18... Qe7 {[%clk 0:01:13.7]} 19. Bf4 {[%clk 0:02:22.9]}
19... Rfd8 {[%clk 0:01:06.2]} 20. Qe2 {[%clk 0:02:19]} 20... a5 {[%clk
0:01:03.5]} 21. Rxd8+ {[%clk 0:02:13.9]} 21... Rxd8 {[%clk 0:01:01.8]} 22. Qxe4
{[%clk 0:02:14.6]} 22... Rd4 {[%clk 0:00:55.8]} 23. Qf5 {[%clk 0:02:01.9]} 23...
axb4 {[%clk 0:00:48.2]} 24. Be3 {[%clk 0:01:56.7]} 24... Rd8 {[%clk 0:00:31.8]}
25. Bg5 {[%clk 0:01:51.7]} 25... f6 {[%clk 0:00:21.8]} 26. exf6 {[%clk
0:01:51.2]} 26... Qf7 {[%clk 0:00:18.5]} 27. fxg7 {[%clk 0:01:50.7]} 27... Qxf5
{[%clk 0:00:19.1]} 28. gxf5 {[%clk 0:01:51]} 28... Rd5 {[%clk 0:00:19.1]} 29.
Bh6 {[%clk 0:01:22.4]} 29... Rd6 {[%clk 0:00:14.8]} 30. Bf4 {[%clk 0:01:17.3]}
30... Rf6 {[%clk 0:00:12.7]} 31. axb4 {[%clk 0:01:09.9]} 31... Rxf5 {[%clk
0:00:11.2]} 32. Bh6 {[%clk 0:01:10.5]} 32... Rh5 {[%clk 0:00:08.7]} 33. Be3
{[%clk 0:01:02.6]} 33... Bxe3+ {[%clk 0:00:08.5]} 34. fxe3 {[%clk 0:01:04.5]}
34... Kxg7 {[%clk 0:00:09.9]} 35. Kd2 {[%clk 0:01:05.1]} 35... Kf6 {[%clk
0:00:10.1]} 36. c4 {[%clk 0:01:05.7]} 36... Ke6 {[%clk 0:00:10.9]} 37. Kd3
{[%clk 0:01:06.4]} 37... Ke5 {[%clk 0:00:11.1]} 38. h4 {[%clk 0:01:05.2]} 38...
c6 {[%clk 0:00:10.7]} 39. e4 {[%clk 0:01:00.2]} 39... b5 {[%clk 0:00:10.7]} 40.
c5 {[%clk 0:01:00.3]} 40... Rh6 {[%clk 0:00:06.8]} 41. h5 {[%clk 0:00:52.7]}
41... Rf6 {[%clk 0:00:06.7]} 42. Rh3 {[%clk 0:00:53.8]} 42... Rh6 {[%clk
0:00:05.6]} 43. Ke3 {[%clk 0:00:52.3]} 43... Kf6 {[%clk 0:00:02.9]} 44. Kf4
{[%clk 0:00:52.2]} 44... Ke6 {[%clk 0:00:03.7]} 45. e5 {[%clk 0:00:51.4]} 45...
Kd5 {[%clk 0:00:03.3]} 46. Kf5 {[%clk 0:00:49.4]} 1-0

[Event "*** Titled Tuesday 3|2 Blitz"]
[Site "Chess.com"]
[Date "2016.07.05"]
[Round "2"]
[White "TheLancer"]
[Black "Byniolus"]
[Result "1/2-1/2"]
[WhiteElo "2470"]
[BlackElo "2593"]
[TimeControl "180+2"]
[EndTime "11:20:41 PDT"]
[Termination "Game drawn by agreement"]

1. e4 {[%clk 0:03:01.9]} 1... d6 {[%clk 0:03:00.5]} 2. d4 {[%clk 0:03:01.5]}
2... Nf6 {[%clk 0:03:00.5]} 3. Nc3 {[%clk 0:03:02.9]} 3... c6 {[%clk 0:03:01.3]}
4. Nf3 {[%clk 0:02:54.2]} 4... Bg4 {[%clk 0:03:01.8]} 5. h3 {[%clk 0:02:53]}
5... Bh5 {[%clk 0:03:01.6]} 6. Bd3 {[%clk 0:02:36.8]} 6... e6 {[%clk 0:03:02.2]}
7. Bg5 {[%clk 0:02:31]} 7... Be7 {[%clk 0:03:02.3]} 8. Ne2 {[%clk 0:01:56.2]}
8... d5 {[%clk 0:02:55.5]} 9. e5 {[%clk 0:01:51]} 9... Bxf3 {[%clk 0:02:55.6]}
10. gxf3 {[%clk 0:01:38.4]} 10... Nfd7 {[%clk 0:02:55.2]} 11. Bxe7 {[%clk
0:01:37]} 11... Qxe7 {[%clk 0:02:57.1]} 12. c3 {[%clk 0:01:35.3]} 12... c5
{[%clk 0:02:55.9]} 13. a3 {[%clk 0:01:33.7]} 13... Nc6 {[%clk 0:02:56.1]} 14. b4
{[%clk 0:01:31.8]} 14... cxd4 {[%clk 0:02:54.5]} 15. cxd4 {[%clk 0:01:32.5]}
15... f6 {[%clk 0:02:50.6]} 16. f4 {[%clk 0:01:15.3]} 16... f5 {[%clk
0:02:45.2]} 17. Rc1 {[%clk 0:01:04.6]} 17... a5 {[%clk 0:02:37]} 18. b5 {[%clk
0:01:00.6]} 18... Na7 {[%clk 0:02:36.8]} 19. Rc7 {[%clk 0:00:35.2]} 19... Qxa3
{[%clk 0:02:09.2]} 20. Rxb7 {[%clk 0:00:31.5]} 20... Qb4+ {[%clk 0:02:06.2]} 21.
Qd2 {[%clk 0:00:26.7]} 21... Nc8 {[%clk 0:02:05.9]} 22. Qxb4 {[%clk 0:00:19.6]}
22... axb4 {[%clk 0:02:07.8]} 23. Kd2 {[%clk 0:00:19.8]} 23... Ncb6 {[%clk
0:01:54.4]} 24. Rc1 {[%clk 0:00:18.1]} 24... Ke7 {[%clk 0:01:45.7]} 25. Rc6
{[%clk 0:00:16.5]} 25... Rhb8 {[%clk 0:01:43.7]} 26. Rxb8 {[%clk 0:00:17.5]}
26... Rxb8 {[%clk 0:01:45.4]} 27. Nc1 {[%clk 0:00:17.1]} 27... Nc4+ {[%clk
0:01:41.5]} 28. Bxc4 {[%clk 0:00:16.6]} 28... dxc4 {[%clk 0:01:43.4]} 29. Rxc4
{[%clk 0:00:18.1]} 29... Rxb5 {[%clk 0:01:45.1]} 30. Kc2 {[%clk 0:00:18.2]}
30... Nb6 {[%clk 0:01:42]} 31. Rc7+ {[%clk 0:00:16.7]} 31... Kf8 {[%clk
0:01:42.2]} 32. Nd3 {[%clk 0:00:17.8]} 32... Nd5 {[%clk 0:01:42.9]} 33. Rc6
{[%clk 0:00:18.4]} 33... b3+ {[%clk 0:01:37.6]} 34. Kb2 {[%clk 0:00:17.7]} 34...
Kf7 {[%clk 0:01:36.1]} 35. Ra6 {[%clk 0:00:16.5]} 35... h6 {[%clk 0:01:34.1]}
36. Ra3 {[%clk 0:00:17]} 36... Kg6 {[%clk 0:01:21.2]} 37. Rxb3 {[%clk
0:00:17.1]} 37... Rxb3+ {[%clk 0:01:23.1]} 38. Kxb3 {[%clk 0:00:18.6]} 38... Kh5
{[%clk 0:01:25]} 39. Kc4 {[%clk 0:00:16]} 39... Kh4 {[%clk 0:01:26.6]} 40. Kc5
{[%clk 0:00:17.5]} 40... Kxh3 {[%clk 0:01:28.3]} 41. Kd6 {[%clk 0:00:19.1]}
41... Kg4 {[%clk 0:01:14.8]} 42. Kxe6 {[%clk 0:00:19.6]} 42... Nb6 {[%clk
0:01:16.7]} 43. f3+ {[%clk 0:00:12.2]} 43... Kg3 {[%clk 0:01:18.3]} 44. Kxf5
{[%clk 0:00:13]} 44... h5 {[%clk 0:01:20.2]} 45. Nc5 {[%clk 0:00:13.4]} 45... h4
{[%clk 0:01:20.6]} 46. Ne4+ {[%clk 0:00:15]} 46... Kxf3 {[%clk 0:01:21.5]} 47.
Ng5+ {[%clk 0:00:15.4]} 47... Ke3 {[%clk 0:01:23.1]} 48. e6 {[%clk 0:00:14.7]}
48... Kxd4 {[%clk 0:01:24.3]} 49. e7 {[%clk 0:00:14]} 49... Nc8 {[%clk
0:01:25.6]} 50. Ke6 {[%clk 0:00:09.1]} 50... Nxe7 {[%clk 0:01:23.4]} 51. Kxe7
{[%clk 0:00:11]} 51... Ke3 {[%clk 0:01:23]} 52. Nh3 {[%clk 0:00:10.1]} 52... Kf3
{[%clk 0:01:24.1]} 53. Kf7 {[%clk 0:00:11.4]} 53... Kg4 {[%clk 0:01:25.6]} 54.
Kxg7 {[%clk 0:00:11.9]} 54... Kxh3 {[%clk 0:01:27.3]} 55. f5 {[%clk 0:00:13.5]}
55... Kg2 {[%clk 0:01:29]} 56. f6 {[%clk 0:00:15.2]} 56... h3 {[%clk 0:01:30.9]}
57. f7 {[%clk 0:00:16.9]} 57... h2 {[%clk 0:01:32.6]} 58. f8=Q {[%clk 0:00:18]}
58... h1=Q {[%clk 0:01:34.5]} 1/2-1/2

[Event "*** Titled Tuesday 3|2 Blitz"]
[Site "Chess.com"]
[Date "2016.07.05"]
[Round "2"]
[White "Krupko_Alexey"]
[Black "CraiggoryC"]
[Result "0-1"]
[WhiteElo "1956"]
[BlackElo "2071"]
[TimeControl "180+2"]
[EndTime "11:20:43 PDT"]
[Termination "CraiggoryC won by checkmate"]

1. e4 {[%clk 0:03:01.9]} 1... e6 {[%clk 0:03:00.7]} 2. d4 {[%clk 0:03:00.8]}
2... d5 {[%clk 0:03:02]} 3. Nc3 {[%clk 0:03:01.7]} 3... Bb4 {[%clk 0:03:02.2]}
4. e5 {[%clk 0:03:02.3]} 4... c5 {[%clk 0:03:03.3]} 5. a3 {[%clk 0:03:02.8]}
5... Bxc3+ {[%clk 0:03:04.6]} 6. bxc3 {[%clk 0:03:04.3]} 6... Ne7 {[%clk
0:03:06.3]} 7. Qg4 {[%clk 0:03:04.8]} 7... Qc7 {[%clk 0:03:07]} 8. Qxg7 {[%clk
0:03:02.1]} 8... Rg8 {[%clk 0:03:07.5]} 9. Qxh7 {[%clk 0:03:03.4]} 9... cxd4
{[%clk 0:03:09.1]} 10. Ne2 {[%clk 0:03:04.6]} 10... Nbc6 {[%clk 0:03:10]} 11. f4
{[%clk 0:03:05.2]} 11... Bd7 {[%clk 0:03:09.8]} 12. Qd3 {[%clk 0:03:05]} 12...
dxc3 {[%clk 0:03:11]} 13. Nxc3 {[%clk 0:03:03.9]} 13... a6 {[%clk 0:03:11.9]}
14. Rb1 {[%clk 0:03:05.1]} 14... Na5 {[%clk 0:03:11.5]} 15. h4 {[%clk
0:03:00.2]} 15... Nf5 {[%clk 0:03:05]} 16. Rh3 {[%clk 0:02:57.3]} 16... O-O-O
{[%clk 0:03:00.4]} 17. h5 {[%clk 0:02:54.9]} 17... Qc5 {[%clk 0:02:56.5]} 18. h6
{[%clk 0:02:37.9]} 18... Rg6 {[%clk 0:02:55.1]} 19. h7 {[%clk 0:02:38.7]} 19...
Rh8 {[%clk 0:02:56]} 20. Ne2 {[%clk 0:02:31.3]} 20... Rg7 {[%clk 0:02:31]} 21.
Bd2 {[%clk 0:01:51.4]} 21... Nc4 {[%clk 0:02:18.7]} 22. Bb4 {[%clk 0:01:49.8]}
22... Qc7 {[%clk 0:02:08]} 23. Nd4 {[%clk 0:01:46.7]} 23... Nxd4 {[%clk
0:01:57.7]} 24. Qxd4 {[%clk 0:01:47.4]} 24... Rgxh7 {[%clk 0:01:51.8]} 25. Rc3
{[%clk 0:01:41.6]} 25... b5 {[%clk 0:01:39.3]} 26. a4 {[%clk 0:01:36.2]} 26...
Rh1 {[%clk 0:01:38.2]} 27. Kf2 {[%clk 0:01:37]} 27... Qd8 {[%clk 0:01:32.8]} 28.
axb5 {[%clk 0:01:31.6]} 28... Qh4+ {[%clk 0:01:30]} 29. Rg3 {[%clk 0:01:16.7]}
29... Bxb5 {[%clk 0:01:25]} 30. Bd6 {[%clk 0:01:07.6]} 30... Nxd6 {[%clk
0:01:16.8]} 31. exd6 {[%clk 0:01:07.9]} 31... Rxf1+ {[%clk 0:01:12.7]} 32. Rxf1
{[%clk 0:01:06.4]} 32... Bxf1 {[%clk 0:01:13]} 33. Qb6 {[%clk 0:00:47.2]} 33...
Qxf4+ {[%clk 0:00:57.2]} 34. Kg1 {[%clk 0:00:32.9]} 34... Qc4 {[%clk 0:00:40.1]}
35. Rg7 {[%clk 0:00:20.8]} 35... Bxg2 {[%clk 0:00:31.7]} 36. Rxg2 {[%clk
0:00:12.4]} 36... Qc3 {[%clk 0:00:14.9]} 37. Qxa6+ {[%clk 0:00:10.8]} 37... Kb8
{[%clk 0:00:15.2]} 38. Qb6+ {[%clk 0:00:08.5]} 38... Kc8 {[%clk 0:00:16]} 39.
Rg7 {[%clk 0:00:07.5]} 39... Qe1+ {[%clk 0:00:15.8]} 40. Kg2 {[%clk 0:00:08.3]}
40... Qe2+ {[%clk 0:00:16.8]} 41. Kg3 {[%clk 0:00:09.4]} 41... Qh2+ {[%clk
0:00:16.1]} 42. Kf3 {[%clk 0:00:10.4]} 42... Rh3+ {[%clk 0:00:15.9]} 43. Kg4
{[%clk 0:00:09.9]} 43... Qg2+ {[%clk 0:00:16.2]} 44. Kf4 {[%clk 0:00:10.9]}
44... Rf3+ {[%clk 0:00:16.9]} 45. Ke5 {[%clk 0:00:12.2]} 45... Qe2+ {[%clk
0:00:17.6]} 46. Kd4 {[%clk 0:00:12.4]} 46... Qe3# {[%clk 0:00:17.8]} 0-1

[Event "*** Titled Tuesday 3|2 Blitz"]
[Site "Chess.com"]
[Date "2016.07.05"]
[Round "2"]
[White "Misha_Bilous"]
[Black "BillieKimbah"]
[Result "0-1"]
[WhiteElo "2264"]
[BlackElo "2518"]
[TimeControl "180+2"]
[EndTime "11:20:44 PDT"]
[Termination "BillieKimbah won on time"]

1. d4 {[%clk 0:03:01.9]} 1... Nf6 {[%clk 0:03:00]} 2. c4 {[%clk 0:03:02.8]} 2...
g6 {[%clk 0:03:00.2]} 3. Nc3 {[%clk 0:03:03.8]} 3... d5 {[%clk 0:03:01]} 4. cxd5
{[%clk 0:03:04.7]} 4... Nxd5 {[%clk 0:03:01.7]} 5. e4 {[%clk 0:03:06.4]} 5...
Nxc3 {[%clk 0:03:02.5]} 6. bxc3 {[%clk 0:03:08.1]} 6... Bg7 {[%clk 0:03:04.1]}
7. Bc4 {[%clk 0:03:09.6]} 7... c5 {[%clk 0:03:04.7]} 8. Ne2 {[%clk 0:03:11.2]}
8... Nc6 {[%clk 0:03:05.7]} 9. Be3 {[%clk 0:03:11.9]} 9... O-O {[%clk
0:03:06.6]} 10. O-O {[%clk 0:03:13]} 10... Qc7 {[%clk 0:03:07.4]} 11. Rc1 {[%clk
0:03:14.1]} 11... Bg4 {[%clk 0:03:02.7]} 12. f3 {[%clk 0:03:10.7]} 12... Bd7
{[%clk 0:03:03.3]} 13. f4 {[%clk 0:03:10.8]} 13... Rad8 {[%clk 0:03:03.2]} 14.
f5 {[%clk 0:03:01]} 14... Bc8 {[%clk 0:02:58.8]} 15. Nf4 {[%clk 0:02:43.6]}
15... Na5 {[%clk 0:02:48.4]} 16. Bd3 {[%clk 0:02:24.3]} 16... e5 {[%clk
0:02:11.1]} 17. Nd5 {[%clk 0:02:14.3]} 17... Rxd5 {[%clk 0:02:09.7]} 18. exd5
{[%clk 0:02:14.6]} 18... exd4 {[%clk 0:01:56.7]} 19. cxd4 {[%clk 0:02:13.1]}
19... c4 {[%clk 0:01:56.7]} 20. Bc2 {[%clk 0:02:09.3]} 20... b5 {[%clk
0:01:49.4]} 21. f6 {[%clk 0:01:35.2]} 21... Bh8 {[%clk 0:01:49.2]} 22. Bf4
{[%clk 0:01:25.7]} 22... Qb6 {[%clk 0:01:49.1]} 23. Be5 {[%clk 0:01:27]} 23...
b4 {[%clk 0:01:37.1]} 24. Be4 {[%clk 0:01:11.7]} 24... Bb7 {[%clk 0:01:29.7]}
25. Qf3 {[%clk 0:01:10.2]} 25... c3 {[%clk 0:01:28]} 26. d6 {[%clk 0:01:09.5]}
26... Nc4 {[%clk 0:01:23.8]} 27. Bxb7 {[%clk 0:00:58.1]} 27... Nxe5 {[%clk
0:01:23.8]} 28. Qe4 {[%clk 0:00:51]} 28... Nd7 {[%clk 0:01:19.2]} 29. Qc6 {[%clk
0:00:22]} 29... Qxd4+ {[%clk 0:01:17.1]} 30. Kh1 {[%clk 0:00:23.1]} 30... Nxf6
{[%clk 0:00:34.2]} 31. Rcd1 {[%clk 0:00:24.1]} 31... Qb6 {[%clk 0:00:28.9]} 32.
Qxb6 {[%clk 0:00:22]} 32... axb6 {[%clk 0:00:29.6]} 33. d7 {[%clk 0:00:23.4]}
33... Rd8 {[%clk 0:00:29.9]} 34. Bc6 {[%clk 0:00:21.9]} 34... Ng4 {[%clk
0:00:26.1]} 35. Rde1 {[%clk 0:00:19.2]} 35... Ne5 {[%clk 0:00:21.8]} 36. Bb5
{[%clk 0:00:16]} 36... Kf8 {[%clk 0:00:19.2]} 37. Rf4 {[%clk 0:00:13]} 37...
Nxd7 {[%clk 0:00:17]} 38. Rxb4 {[%clk 0:00:09.3]} 38... Nc5 {[%clk 0:00:16.2]}
39. Bc4 {[%clk 0:00:07.9]} 39... c2 {[%clk 0:00:16.3]} 40. Rxb6 {[%clk
0:00:04.3]} 40... Rd1 {[%clk 0:00:15]} 41. Rb8+ {[%clk 0:00:04.4]} 41... Kg7
{[%clk 0:00:16]} 0-1

[Event "*** Titled Tuesday 3|2 Blitz"]
[Site "Chess.com"]
[Date "2016.07.05"]
[Round "2"]
[White "evgenyermolaev"]
[Black "HansCoolNiemann"]
[Result "0-1"]
[WhiteElo "2247"]
[BlackElo "2344"]
[TimeControl "180+2"]
[EndTime "11:21:37 PDT"]
[Termination "HansCoolNiemann won by resignation"]

1. e4 {[%clk 0:03:01.9]} 1... g6 {[%clk 0:02:58.4]} 2. e5 {[%clk 0:03:00.1]}
2... Bg7 {[%clk 0:02:58.8]} 3. d4 {[%clk 0:03:01.3]} 3... d6 {[%clk 0:02:59.8]}
4. exd6 {[%clk 0:03:02.6]} 4... cxd6 {[%clk 0:03:01]} 5. Nf3 {[%clk 0:03:04.5]}
5... Nf6 {[%clk 0:03:02.2]} 6. c3 {[%clk 0:03:06]} 6... O-O {[%clk 0:03:03.5]}
7. Be2 {[%clk 0:03:07.6]} 7... b6 {[%clk 0:03:04.9]} 8. O-O {[%clk 0:03:08.9]}
8... Bb7 {[%clk 0:03:06.4]} 9. Bg5 {[%clk 0:03:10.2]} 9... Nbd7 {[%clk
0:03:07.5]} 10. Nbd2 {[%clk 0:03:08.2]} 10... Rc8 {[%clk 0:03:07.5]} 11. h3
{[%clk 0:03:04.9]} 11... h6 {[%clk 0:03:04.6]} 12. Bf4 {[%clk 0:03:04.9]} 12...
Re8 {[%clk 0:03:02.8]} 13. Nb3 {[%clk 0:03:03.3]} 13... e5 {[%clk 0:03:01.3]}
14. dxe5 {[%clk 0:03:04.4]} 14... dxe5 {[%clk 0:03:03.2]} 15. Bg3 {[%clk
0:03:02.7]} 15... Qe7 {[%clk 0:02:58.7]} 16. Bb5 {[%clk 0:02:33.6]} 16... Red8
{[%clk 0:02:50.8]} 17. Qe2 {[%clk 0:02:31.2]} 17... e4 {[%clk 0:02:46.1]} 18.
Nfd4 {[%clk 0:02:28.8]} 18... Nc5 {[%clk 0:02:43.4]} 19. Nxc5 {[%clk 0:02:24]}
19... bxc5 {[%clk 0:02:45.3]} 20. Nb3 {[%clk 0:02:14.5]} 20... Nh5 {[%clk
0:02:39.7]} 21. Bh2 {[%clk 0:02:14.1]} 21... Be5 {[%clk 0:02:40.1]} 22. f4
{[%clk 0:01:52.9]} 22... Bg7 {[%clk 0:02:26.4]} 23. Bc4 {[%clk 0:01:38.6]} 23...
Nf6 {[%clk 0:02:17.5]} 24. Rad1 {[%clk 0:01:35.6]} 24... Nd5 {[%clk 0:02:12.8]}
25. f5 {[%clk 0:01:30.2]} 25... Qg5 {[%clk 0:02:04.9]} 26. fxg6 {[%clk
0:01:27.2]} 26... fxg6 {[%clk 0:02:05]} 27. Qxe4 {[%clk 0:00:45.6]} 27... Kh7
{[%clk 0:02:02.1]} 28. Bxd5 {[%clk 0:00:46.7]} 28... Bxd5 {[%clk 0:02:01.8]} 29.
Qg4 {[%clk 0:00:47.2]} 29... Qe3+ {[%clk 0:02:01.8]} 30. Kh1 {[%clk 0:00:47.8]}
30... Be6 {[%clk 0:01:54.9]} 31. Qf3 {[%clk 0:00:47.7]} 31... Qxf3 {[%clk
0:01:52.9]} 32. gxf3 {[%clk 0:00:47.6]} 32... Bxh3 {[%clk 0:01:52.7]} 33. Rfe1
{[%clk 0:00:48.4]} 33... c4 {[%clk 0:01:53.2]} 34. Nd4 {[%clk 0:00:49.2]} 34...
Re8 {[%clk 0:01:50.7]} 35. Kg1 {[%clk 0:00:48.8]} 35... Bd7 {[%clk 0:01:43.9]}
36. Kf2 {[%clk 0:00:49.6]} 36... Ba4 {[%clk 0:01:43.9]} 37. Rxe8 {[%clk
0:00:49.7]} 37... Rxe8 {[%clk 0:01:43.7]} 38. Re1 {[%clk 0:00:51]} 38... Rxe1
{[%clk 0:01:33]} 39. Kxe1 {[%clk 0:00:51.5]} 39... Kg8 {[%clk 0:01:29.8]} 40.
Kd2 {[%clk 0:00:33.7]} 40... Kf7 {[%clk 0:01:22.1]} 41. b3 {[%clk 0:00:25.7]}
41... Bxd4 {[%clk 0:01:16.9]} 42. bxa4 {[%clk 0:00:21.6]} 42... Bc5 {[%clk
0:01:16.5]} 43. Be5 {[%clk 0:00:18.7]} 43... Ke6 {[%clk 0:01:16]} 44. Bg7 {[%clk
0:00:19]} 44... h5 {[%clk 0:01:14.7]} 45. Ke2 {[%clk 0:00:17.9]} 45... Kf5
{[%clk 0:01:15.3]} 46. a5 {[%clk 0:00:17.6]} 46... a6 {[%clk 0:01:15.6]} 47. a4
{[%clk 0:00:16.4]} 47... h4 {[%clk 0:01:14.5]} 48. Kf1 {[%clk 0:00:11.7]} 48...
h3 {[%clk 0:01:13.7]} 49. Bh6 {[%clk 0:00:12.7]} 49... g5 {[%clk 0:01:13.1]} 50.
Bg7 {[%clk 0:00:11.7]} 50... g4 {[%clk 0:01:11.4]} 51. fxg4+ {[%clk 0:00:12.8]}
51... Kxg4 {[%clk 0:01:13.3]} 52. Be5 {[%clk 0:00:13.9]} 52... Kf3 {[%clk
0:01:14.5]} 53. Bc7 {[%clk 0:00:14.9]} 53... Ke4 {[%clk 0:01:12.5]} 54. Bb6
{[%clk 0:00:14.5]} 54... Be3 {[%clk 0:01:10]} 55. Bc7 {[%clk 0:00:09.1]} 55...
Kd3 {[%clk 0:01:10]} 56. Be5 {[%clk 0:00:10.3]} 56... Bd2 {[%clk 0:01:09.3]} 57.
Kf2 {[%clk 0:00:10.6]} 57... Bxc3 {[%clk 0:01:10.1]} 58. Bd6 {[%clk 0:00:11.5]}
58... Bd4+ {[%clk 0:01:09.4]} 59. Kg3 {[%clk 0:00:12.8]} 59... c3 {[%clk
0:01:10.9]} 60. Kxh3 {[%clk 0:00:13.3]} 60... c2 {[%clk 0:01:12.3]} 61. Ba3
{[%clk 0:00:14.2]} 61... Kc3 {[%clk 0:01:13.2]} 62. Kg4 {[%clk 0:00:14.6]} 62...
Kb3 {[%clk 0:01:14.3]} 63. Bc1 {[%clk 0:00:15.8]} 63... Bb2 {[%clk 0:01:14.6]}
64. Be3 {[%clk 0:00:16.5]} 64... Kxa4 {[%clk 0:01:15.7]} 65. Kf3 {[%clk
0:00:16.9]} 65... Kxa5 {[%clk 0:01:16.6]} 66. Ke4 {[%clk 0:00:17.5]} 66... Kb4
{[%clk 0:01:17.2]} 67. Kd3 {[%clk 0:00:18.9]} 67... Kb3 {[%clk 0:01:18.6]} 0-1